fUSD/lending_fUSD_20240222
["ID","MTS","AMOUNT","RATE_DAILY","PERIOD"]
[314812088,1708564241940,-6012.62,0.00032876,4]
[314812089,1708564241949,-6012.62,0.00032876,4]
[314812090,1708564241958,-6012.62,0.00032876,4]
[314812091,1708564241967,-6012.62,0.00032876,4]
[314812092,1708564241977,-6012.62,0.00032876,4]
[314812093,1708564241986,-6012.62,0.00032876,4]
[314812094,1708564241996,-6012.62434259,0.00032876,4]
[314812095,1708564242005,-155.0,0.00032877,2]
[314812096,1708564242016,-360.5955277,0.00033,2]
[314812097,1708564242026,-17416.63532201,0.00033,2]
[314812098,1708564242036,-966.84305393,0.00033,2]
[314812099,1708564242045,-950.0,0.00033,3]
[314812100,1708564242055,-170.0,0.00033,2]
[314812101,1708564242065,-165.0,0.00033177,2]
[314812102,1708564242075,-205.0,0.00033378,2]
[314812103,1708564242086,-1156.9,0.00033465,2]
[314812104,1708564242098,-732.71501945,0.000335,2]
[314812105,1708564242108,-165.0,0.00033725,2]
[314812106,1708564242118,-2968.90236127,0.00033736,5]
[314812107,1708564242128,-155.25,0.0003379,2]
[314812108,1708564242139,-150.15834383,0.000339,2]
[314812109,1708564242149,-150.15834362,0.000339,2]
[314812110,1708564242159,-150.15834362,0.000339,2]
[314812111,1708564242169,-150.15834362,0.000339,2]
[314812112,1708564242179,-150.15834362,0.000339,2]
[314812113,1708564242189,-150.15834362,0.000339,2]
[314812114,1708564242199,-150.15834362,0.000339,2]
[314812115,1708564242209,-150.15834362,0.000339,2]
[314812116,1708564242219,-150.15834362,0.000339,2]
[314812117,1708564242230,-150.15834362,0.000339,2]
[314812118,1708564242240,-150.15834362,0.000339,2]
[314812119,1708564242250,-150.15834362,0.000339,2]
[314812120,1708564242260,-150.15834362,0.000339,2]
[314812121,1708564242270,-150.15834362,0.000339,2]
[314812122,1708564242280,-150.15834362,0.000339,2]
[314812123,1708564242290,-150.15834362,0.000339,2]
[314812124,1708564242300,-150.15834362,0.000339,2]
[314812125,1708564242310,-150.15834362,0.000339,2]
[314812126,1708564242320,-150.15834362,0.000339,2]
[314812127,1708564242330,-151.08,0.00034236,2]
[314812128,1708564242340,-155.0,0.00034247,2]
[314812129,1708564242350,-165.0,0.00034273,2]
[314812130,1708564242360,-150.15834362,0.00034406,2]
[314812131,1708564242370,-151.0,0.00034474,120]
[314812132,1708564242382,-165.63,0.00034511,2]
[314812133,1708564242397,-12132.421541,0.0003452,2]
[314812134,1708564242407,-3053.932654,0.0003452,2]
[314812135,1708564242417,-18198.632311,0.0003452,2]
[314812136,1708564242427,-347.281758,0.0003452,2]
[314812137,1708564242437,-3187.02,0.00034521,2]
[314812138,1708564242447,-200.0,0.00034794,2]
[314812139,1708564242456,-346.0,0.00034794,2]
[314812140,1708564242467,-18198.632311,0.00034794,2]
[314812141,1708564242477,-4580.898982,0.00034794,2]
[314812142,1708564242486,-27297.948467,0.00034794,2]
[314812143,1708564242496,-520.922637,0.00034794,2]
[314812144,1708564242507,-165.0,0.00034821,2]
[314812145,1708564242517,-192.0,0.00034875,2]
[314812146,1708564242526,-520.21,0.0003489,10]
[314812147,1708564242536,-14937.01018386,0.000349,2]
[314812148,1708564242545,-9158.10720778,0.000349,120]
[314812149,1708564242554,-3548.46055506,0.000349,2]
[314812150,1708564242563,-3548.46055502,0.000349,2]
[314812151,1708564242573,-3548.46055502,0.000349,2]
[314812152,1708564242587,-3548.46055502,0.000349,2]
[314812153,1708564242596,-189.30473417,0.000349,2]
[314812154,1708564242606,-3548.46055502,0.000349,2]
[314812155,1708564242615,-3548.46055502,0.000349,2]
[314812156,1708564242626,-3548.46055502,0.000349,2]
[314812157,1708564242636,-3548.46055502,0.000349,2]
[314812158,1708564242646,-24264.843082,0.00034931,2]
[314812159,1708564242655,-6107.865309,0.00034931,2]
[314812160,1708564242665,-36397.264623,0.00034931,2]
[314812161,1708564242675,-694.563517,0.00034931,2]
[314812162,1708564242685,-1580.97216724,0.0003499,2]
[314812163,1708564242696,-469.7842583,0.00035,30]
[314812164,1708564242706,-155.0,0.00035,4]
[314812165,1708564242716,-610694.13345841,0.00035,2]
[314812166,1708564242726,-198492.70290859,0.00035,4]
[314812167,1708564242735,-12950.80339414,0.00035,2]
[314812168,1708564242746,-98565.55953613,0.00035,2]
[314812169,1708564242756,-1000.0,0.00035,3]
[314812170,1708564242766,-150.1,0.00035,3]
[314812171,1708564242776,-35585.37781456,0.00035,2]
[314812172,1708564242786,-520.16899985,0.00035,2]
[314812173,1708564242796,-167.65821061,0.00035,2]
[314812174,1708564242806,-180.0,0.00035,2]
[314812175,1708564242816,-150.15834362,0.00035012,2]
[314812176,1708564242826,-30331.053853,0.00035068,2]
[314812177,1708564242837,-7634.831636,0.00035068,2]
[314812178,1708564242847,-45496.580779,0.00035068,2]
[314812179,1708564242856,-868.204396,0.00035068,2]
[314812180,1708564242866,-2968.90236127,0.00035091,7]
[314812181,1708564242876,-169.91,0.00035103,2]
[314812182,1708564242886,-151.0,0.00035178,30]
[314812183,1708564242895,-205.0,0.0003528,6]
[314812184,1708564242905,-42463.475394,0.00035342,2]
[314812185,1708564242914,-10688.764291,0.00035342,2]
[314812186,1708564242924,-63695.21309,0.00035342,2]
[314812187,1708564242934,-1215.486155,0.00035342,2]
[314812188,1708564242944,-165.0,0.00035368,2]
[314812189,1708564242954,-3548.46055502,0.00035532,2]
[314812190,1708564242965,-8621.88057381,0.00035588,2]
[314812192,1708564242975,-500.0,0.00035616,2]
[314812193,1708564242984,-500.0,0.00035616,2]
[314812194,1708564242994,-500.0,0.00035616,2]
[314812195,1708564243005,-500.0,0.00035616,2]
[314812196,1708564243015,-500.0,0.00035616,2]
[314812197,1708564243024,-500.0,0.00035616,2]
[314812199,1708564243034,-500.0,0.00035616,2]
[314812200,1708564243044,-500.0,0.00035616,2]
[314812201,1708564243053,-500.0,0.00035616,2]
[314812202,1708564243062,-500.0,0.00035616,2]
[314812203,1708564243072,-500.0,0.00035616,2]
[314812204,1708564243081,-500.0,0.00035616,2]
[314812206,1708564243371,-500.0,0.00035616,2]
[314812207,1708564243397,-500.0,0.00035616,2]
[314812208,1708564243407,-500.0,0.00035616,2]
[314812209,1708564243416,-500.0,0.00035616,2]
[314812210,1708564243426,-500.0,0.00035616,2]
[314812211,1708564243435,-500.0,0.00035616,2]
[314812212,1708564243444,-500.0,0.00035616,2]
[314812213,1708564243454,-500.0,0.00035616,2]
[314812214,1708564243465,-204.85598886,0.00035616,2]
[314812215,1708564243474,-3955.09,0.00035616,2]
[314812216,1708564243483,-876.72,0.00035616,10]
[314812217,1708564243493,-155.25,0.00035616,2]
[314812218,1708564243502,-155.0,0.00035617,2]
[314812219,1708564243512,-150.15834362,0.00035617,2]
[314812220,1708564243522,-16058.02935541,0.000357,2]
[314812221,1708564243531,-9756.75,0.000357,7]
[314812222,1708564243540,-5256.61,0.000357,7]
[314812223,1708564243550,-8593.92,0.000357,7]
[314812224,1708564243559,-1156.9,0.00035729,2]
[314812225,1708564243569,-3187.02,0.00035798,2]
[314812226,1708564243578,-151.0,0.00035896,7]
[314812227,1708564243588,-165.0,0.00035916,7]
[314812228,1708564243598,-954.0,0.00035942,2]
[314812229,1708564243607,-342.11,0.00035942,2]
[314812230,1708564243617,-1231.0,0.00035942,2]
[314812231,1708564243626,-216.0,0.00035942,2]
[314812232,1708564243636,-1256.0,0.00035942,2]
[314812233,1708564243645,-337.0,0.00035942,2]
[314812234,1708564243655,-317.722,0.00035942,2]
[314812235,1708564243666,-2586.0,0.00035942,2]
[314812236,1708564243676,-302.0,0.00035942,2]
[314812237,1708564243685,-454.0,0.00035942,2]
[314812238,1708564243695,-2172.99006958,0.00036,4]
[314812239,1708564243705,-4384.4269604,0.00036,2]
[314812240,1708564243716,-170.0,0.00036,2]
[314812241,1708564243725,-2327.49214953,0.00036,120]
[314812242,1708564243735,-44743.88648781,0.0003603,2]
[314812243,1708564243745,-19879.0,0.0003604,2]
[314812244,1708564243754,-4104.0,0.0003604,2]
[314812245,1708564243765,-7429.0,0.0003604,2]
[314812246,1708564243774,-2932.0,0.0003604,2]
[314812247,1708564243784,-8177.0,0.0003604,2]
[314812248,1708564243794,-42646.0,0.0003604,2]
[314812249,1708564243803,-2293.0,0.0003604,2]
[314812250,1708564243813,-1039.0,0.0003604,2]
[314812251,1708564243823,-1000.0,0.00036056,2]
[314812252,1708564243832,-150.0,0.00036071,2]
[314812253,1708564243842,-150.0,0.00036108,2]
[314812254,1708564243852,-150.0,0.00036108,2]
[314812255,1708564243862,-150.0,0.00036108,2]
[314812256,1708564243872,-150.0,0.00036108,2]
[314812257,1708564243882,-249.818,0.00036108,2]
[314812258,1708564243892,-171.425,0.00036108,2]
[314812259,1708564243901,-2693.0,0.00036108,2]
[314812260,1708564243911,-1867.0,0.00036108,2]
[314812261,1708564243921,-150.0,0.00036139,2]
[314812262,1708564243930,-1000.0,0.000362,7]
[314812263,1708564243940,-1000.0,0.000362,7]
[314812264,1708564243950,-150.15834362,0.00036223,2]
[314812265,1708564243959,-1794.15954,0.0003626,2]
[314812266,1708564243968,-1794.15954,0.00036378,2]
[314812267,1708564243978,-692.788423,0.00036387,4]
[314812268,1708564243988,-196.28059681,0.00036388,30]
[314812269,1708564243997,-150.0,0.00036388,30]
[314812270,1708564244006,-150.0,0.00036388,30]
[314812271,1708564244017,-150.0,0.00036388,30]
[314812272,1708564244027,-150.0,0.00036388,30]
[314812273,1708564244037,-2000.0,0.00036388,2]
[314812274,1708564244047,-200.0,0.00036388,2]
[314812275,1708564244057,-2000.0,0.00036388,2]
[314812276,1708564244068,-200.0,0.00036388,2]
[314812277,1708564244077,-2000.0,0.00036388,2]
[314812278,1708564244087,-200.0,0.00036388,2]
[314812279,1708564244096,-15904.4048192,0.00036388,2]
[314812280,1708564244105,-101084.97141875,0.00036389,2]
[314812281,1708564244115,-101084.97141875,0.00036389,2]
[314812282,1708564244124,-101084.97141875,0.00036389,2]
[314812283,1708564244134,-101084.97141875,0.00036389,2]
[314812284,1708564244143,-101084.97141875,0.00036389,2]
[314812285,1708564244152,-101084.97141875,0.00036389,2]
[314812286,1708564244162,-101084.97141875,0.00036389,2]
[314812287,1708564244172,-101084.97141875,0.00036389,2]
[314812288,1708564244182,-35585.37781456,0.00036389,2]
[314812289,1708564244192,-20000.0,0.00036414,3]
[314812290,1708564244201,-282.66065505,0.00036438,3]
[314812291,1708564244211,-2968.90236127,0.00036445,9]
[314812292,1708564244221,-165.0,0.00036464,7]
[314812293,1708564244230,-9756.75,0.000365,7]
[314812294,1708564244240,-5256.61,0.000365,7]
[314812295,1708564244249,-8593.92,0.000365,7]
[314812296,1708564244259,-203.60383296,0.000365,3]
[314812297,1708564244269,-1058.0,0.000365,7]
[314812298,1708564244278,-1000.0,0.000365,7]
[314812299,1708564244288,-1000.0,0.000365,7]
[314812300,1708564244298,-1000.0,0.000365,7]
[314812301,1708564244308,-1000.0,0.000365,7]
[314812302,1708564244318,-1000.0,0.000365,7]
[314812303,1708564244328,-1000.0,0.000365,7]
[314812304,1708564244337,-1026.0,0.000365,7]
[314812305,1708564244346,-1000.0,0.000365,7]
[314812306,1708564244356,-101084.97141875,0.00036518,2]
[314812307,1708564244365,-1794.15954,0.0003657,2]
[314812308,1708564244375,-1000.0,0.000366,7]
[314812309,1708564244386,-1000.0,0.000366,7]
[314812310,1708564244397,-151.0,0.00036629,4]
[314812311,1708564244406,-296.8173069,0.0003668,30]
[314812312,1708564244416,-1000.0,0.000367,7]
[314812313,1708564244426,-1000.0,0.000367,7]
[314812314,1708564244436,-2000.0,0.00036752,2]
[314812315,1708564244446,-200.0,0.00036752,2]
[314812316,1708564244456,-2000.0,0.00036752,2]
[314812317,1708564244466,-200.0,0.00036752,2]
[314812318,1708564244476,-2000.0,0.00036752,2]
[314812319,1708564244486,-200.0,0.00036752,2]
[314812320,1708564244495,-21314.48333729,0.00036798,2]
[314812321,1708564244505,-21314.48333729,0.00036798,2]
[314812322,1708564244514,-21314.48333729,0.00036798,2]
[314812323,1708564244525,-21314.48333729,0.00036798,2]
[314812324,1708564244534,-21314.48333729,0.00036798,2]
[314812325,1708564244544,-21314.48333729,0.00036798,2]
[314812326,1708564244555,-21314.48333729,0.00036798,2]
[314812327,1708564244564,-21314.48333729,0.00036798,2]
[314812328,1708564244573,-21314.48333729,0.00036798,2]
[314812329,1708564244592,-16682.43438022,0.000368,3]
[314812330,1708564244602,-150.15834362,0.00036828,2]
[314812331,1708564244612,-1794.15954,0.0003688,2]
[314812332,1708564244622,-171.79,0.00036966,2]
[314812333,1708564244632,-150.0,0.00036985,30]
[314812334,1708564244642,-150.0,0.00036985,30]
[314812335,1708564244651,-150.0,0.00036985,30]
[314812336,1708564244661,-150.0,0.00036985,30]
[314812337,1708564244671,-7510.055422,0.00036986,2]
[314812338,1708564244680,-66728.318476,0.00036986,2]
[314812339,1708564244690,-1273.366448,0.00036986,2]
[314812340,1708564244699,-48529.686165,0.00036986,2]
[314812341,1708564244709,-12215.730619,0.00036986,2]
[314812342,1708564244718,-72794.529246,0.00036986,2]
[314812343,1708564244728,-1389.127034,0.00036986,2]
[314812344,1708564244739,-666.0,0.00036986,2]
[314812345,1708564244748,-150.0,0.00036986,2]
[314812346,1708564244758,-300.0,0.00036986,7]
[314812347,1708564244769,-383.65050486,0.00036986,12]
[314812348,1708564244778,-155.0,0.00036987,2]
[314812349,1708564244788,-150.0,0.00036999,30]
[314812350,1708564244798,-150.0,0.00036999,30]
[314812351,1708564244808,-150.0,0.00036999,30]
[314812352,1708564244817,-150.0,0.00036999,30]
[314812353,1708564244827,-150.0,0.00036999,30]
[314812354,1708564244837,-1261.81926493,0.00037,15]
[314812355,1708564244847,-2000.0,0.00037,2]
[314812356,1708564244857,-274780.0,0.00037,2]
[314812357,1708564244867,-1673.16128251,0.00037,4]
[314812358,1708564244877,-1050.0,0.00037,3]
[314812359,1708564244887,-1000.0,0.00037,7]
[314812360,1708564244897,-4000.0,0.00037,2]
[314812361,1708564244907,-165.0,0.00037012,7]
[314812362,1708564244916,-3187.02,0.00037075,2]
[314812363,1708564244926,-1000.0,0.000371,7]
[314812364,1708564244935,-3548.46055502,0.00037111,2]
[314812365,1708564244946,-2000.0,0.00037119,2]
[314812366,1708564244955,-200.0,0.00037119,2]
[314812367,1708564244965,-2000.0,0.00037119,2]
[314812368,1708564244975,-200.0,0.00037119,2]
[314812369,1708564244985,-2000.0,0.00037119,2]
[314812370,1708564244994,-200.0,0.00037119,2]
[314812371,1708564245004,-205.0,0.00037181,10]
[314812372,1708564245014,-1794.15954,0.0003719,2]
[314812373,1708564245023,-9756.75,0.000372,7]
[314812374,1708564245033,-5256.61,0.000372,7]
[314812375,1708564245042,-8593.92,0.000372,7]
[314812376,1708564245052,-1500.0,0.00037209,2]
[314812377,1708564245061,-151.0,0.00037376,2]
[314812378,1708564245070,-167.98,0.00037397,2]
[314812379,1708564245080,-152.505892,0.000374,4]
[314812380,1708564245089,-150.0,0.00037414,2]
[314812381,1708564245099,-200.0,0.00037431,3]
[314812382,1708564245109,-150.15834362,0.00037434,2]
[314812383,1708564245118,-155.25,0.00037443,2]
[314812384,1708564245128,-304.43569545,0.00037466,2]
[314812385,1708564245137,-2000.0,0.00037491,2]
[314812386,1708564245147,-200.0,0.00037491,2]
[314812387,1708564245157,-2000.0,0.00037491,2]
[314812388,1708564245169,-200.0,0.00037491,2]
[314812389,1708564245179,-2000.0,0.00037491,2]
[314812390,1708564245188,-200.0,0.00037491,2]
[314812391,1708564245198,-1794.15954,0.0003751,2]
[314812392,1708564245208,-1500.0,0.00037516,2]
[314812393,1708564245218,-165.0,0.0003756,7]
[314812394,1708564245228,-974.46149021,0.00037579,5]
[314812395,1708564245238,-5983.10146995,0.0003758,5]
[314812396,1708564245248,-448.47947663,0.00037582,5]
[314812397,1708564245258,-186761.95742578,0.00037589,5]
[314812398,1708564245268,-119405.18589509,0.0003759,5]
[314812399,1708564245278,-594.79672509,0.00037599,5]
[314812400,1708564245288,-164.41127634,0.000376,5]
[314812401,1708564245298,-974.46149021,0.00037603,5]
[314812402,1708564245307,-167217.69963944,0.00037609,5]
[314812403,1708564245317,-150.0,0.00037624,2]
[314812404,1708564245327,-150.0,0.00037625,2]
[314812405,1708564245337,-804.91024328,0.00037634,5]
[314812406,1708564245346,-594.79672509,0.00037637,5]
[314812407,1708564245355,-150.0,0.00037641,2]
[314812408,1708564245366,-448.47947663,0.00037646,5]
[314812409,1708564245375,-150.0,0.00037656,2]
[314812410,1708564245386,-150.0,0.00037659,2]
[314812411,1708564245398,-180.0,0.00037671,2]
[314812412,1708564245407,-3825.26159551,0.00037673,5]
[314812413,1708564245417,-106909.67681853,0.00037674,5]
[314812414,1708564245428,-1500.0,0.00037681,2]
[314812415,1708564245439,-14283.0,0.00037685,2]
[314812416,1708564245450,-150.0,0.00037692,2]
[314812417,1708564245460,-150.0,0.00037696,2]
[314812418,1708564245472,-197.022209,0.00037698,26]
[314812419,1708564245484,-150.0,0.00037698,2]
[314812420,1708564245494,-150.0,0.00037711,2]
[314812421,1708564245504,-119405.18589509,0.00037725,5]
[314812422,1708564245515,-106909.67681853,0.00037729,5]
[314812423,1708564245525,-150.0,0.00037731,2]
[314812424,1708564245534,-167217.69963944,0.00037738,5]
[314812425,1708564245545,-150.0,0.00037741,2]
[314812426,1708564245555,-804.91024328,0.00037742,5]
[314812427,1708564245565,-150.0,0.00037742,2]
[314812428,1708564245575,-150.0,0.00037751,2]
[314812429,1708564245584,-150.0,0.00037753,2]
[314812430,1708564245594,-164.41127634,0.00037766,5]
[314812431,1708564245603,-150.0,0.00037771,2]
[314812432,1708564245613,-150.0,0.00037772,2]
[314812433,1708564245623,-150.0,0.00037781,2]
[314812434,1708564245633,-3825.26159551,0.00037786,5]
[314812435,1708564245644,-186761.95742578,0.00037789,5]
[314812436,1708564245653,-197.022209,0.00037798,27]
[314812437,1708564245663,-5983.10146995,0.00037799,5]
[314812438,1708564245673,-20000.0,0.000378,2]
[314812439,1708564245682,-2968.90236127,0.000378,11]
[314812440,1708564245691,-813.02265495,0.000378,2]
[314812441,1708564245701,-440.10517674,0.000378,2]
[314812442,1708564245710,-150.0,0.00037817,2]
[314812443,1708564245720,-150.0,0.0003782,2]
[314812444,1708564245729,-150.0,0.00037833,2]
[314812445,1708564245738,-150.0,0.00037836,2]
[314812446,1708564245748,-13835.98252699,0.00037838,2]
[314812447,1708564245757,-150.0,0.00037854,2]
[314812448,1708564245766,-2000.0,0.00037865,2]
[314812449,1708564245847,-200.0,0.00037865,2]
[314812450,1708564245857,-2000.0,0.00037865,2]
[314812451,1708564245867,-200.0,0.00037865,2]
[314812452,1708564245876,-1500.0,0.00037875,2]
[314812453,1708564245886,-150.0,0.00037885,2]
[314812454,1708564245895,-200.0,0.0003789,7]
[314812455,1708564245905,-200.0,0.0003789,7]
[314812456,1708564245915,-197.022209,0.00037898,27]
[314812457,1708564245925,-150.0,0.00037899,30]
[314812458,1708564245934,-150.0,0.00037899,30]
[314812459,1708564245943,-150.0,0.00037899,30]
[314812460,1708564245952,-150.0,0.00037899,30]
[314812461,1708564245963,-150.0,0.00037899,30]
[314812462,1708564245973,-150.0,0.00037899,30]
[314812463,1708564245982,-150.0,0.00037899,30]
[314812464,1708564245991,-261501.40244981,0.000379,3]
[314812465,1708564246001,-796266.20035158,0.000379,2]
[314812466,1708564246011,-9756.75,0.000379,7]
[314812467,1708564246023,-5256.61,0.000379,7]
[314812468,1708564246032,-8593.92,0.000379,7]
[314812469,1708564246042,-150.0,0.000379,2]
[314812470,1708564246052,-520.16899985,0.000379,2]
[314812471,1708564246061,-86752.11916623,0.000379,2]
[314812484,1708564246671,-581866.42055877,0.000379,2]
[314812486,1708564246680,-561.08,0.000379,2]
[314812488,1708564246690,-150.0,0.00037901,2]
[314812490,1708564246699,-150.0,0.00037924,2]
[314812492,1708564246707,-150.0,0.00037934,2]
[314812494,1708564246716,-150.0,0.00037941,2]
[314812496,1708564246726,-15748.4791429,0.0003796,2]
[314812497,1708564246735,-150.0,0.00037983,2]
[314812500,1708564246744,-150.0,0.00037985,2]
[314812501,1708564246754,-150.0,0.00037985,2]
[314812504,1708564246764,-1156.9,0.00037993,2]
[314812506,1708564246774,-197.022209,0.00037998,27]
[314812508,1708564246784,-150.0,0.00037998,2]
[314812510,1708564246794,-150.0,0.00037999,30]
[314812512,1708564246804,-150.0,0.00037999,30]
[314812514,1708564246813,-150.0,0.00037999,30]
[314812516,1708564246823,-1000.0,0.00038,5]
[314812518,1708564246832,-490.15507744,0.00038,4]
[314812520,1708564246841,-921.46946663,0.00038,5]
[314812522,1708564246850,-15891.0396214,0.00038,7]
[314812524,1708564246859,-791.5,0.00038,2]
[314812526,1708564246868,-219969.42287976,0.00038,2]
[314812528,1708564246877,-175.0,0.00038,2]
[314812530,1708564246886,-363.0,0.00038,2]
[314812531,1708564246895,-764.44012135,0.00038,2]
[314812533,1708564246904,-764.44012135,0.00038,2]
[314812535,1708564246913,-764.44012135,0.00038,2]
[314812537,1708564246922,-764.44012135,0.00038,2]
[314812539,1708564246931,-764.44012135,0.00038,2]
[314812541,1708564246940,-764.44012135,0.00038,2]
[314812543,1708564246950,-764.44012135,0.00038,2]
[314812546,1708564246959,-764.44012135,0.00038,2]
[314812547,1708564246969,-764.44012135,0.00038,2]
[314812550,1708564246978,-764.44012135,0.00038,2]
[314812552,1708564246987,-764.44012135,0.00038,2]
[314812554,1708564246997,-764.44012135,0.00038,2]
[314812555,1708564247006,-764.44012135,0.00038,2]
[314812558,1708564247016,-764.44012135,0.00038,2]
[314812560,1708564247026,-764.44012135,0.00038,2]
[314812562,1708564247035,-764.44012135,0.00038,2]
[314812563,1708564247045,-764.44012135,0.00038,2]
[314812566,1708564247054,-764.44012135,0.00038,2]
[314812568,1708564247064,-764.44012135,0.00038,2]
[314812570,1708564247073,-764.44012135,0.00038,2]
[314812572,1708564247082,-764.44012135,0.00038,2]
[314812574,1708564247091,-764.44012135,0.00038,2]
[314812576,1708564247102,-764.44012135,0.00038,2]
[314812578,1708564247111,-764.44012135,0.00038,2]
[314812580,1708564247120,-764.44012135,0.00038,2]
[314812582,1708564247129,-764.44012135,0.00038,2]
[314812584,1708564247138,-764.44012135,0.00038,2]
[314812586,1708564247148,-764.44012135,0.00038,2]
[314812588,1708564247157,-764.44012135,0.00038,2]
[314812590,1708564247167,-764.44012135,0.00038,2]
[314812591,1708564247176,-764.44012135,0.00038,2]
[314812594,1708564247185,-764.44012135,0.00038,2]
[314812595,1708564247195,-764.44012135,0.00038,2]
[314812598,1708564247205,-764.44012135,0.00038,2]
[314812599,1708564247214,-764.44012135,0.00038,2]
[314812601,1708564247224,-764.44012135,0.00038,2]
[314812604,1708564247233,-764.44012135,0.00038,2]
[314812606,1708564247243,-764.44012135,0.00038,2]
[314812607,1708564247252,-764.44012135,0.00038,2]
[314812610,1708564247262,-764.44012135,0.00038,2]
[314812612,1708564247272,-764.44012135,0.00038,2]
[314812614,1708564247282,-764.44012135,0.00038,2]
[314812616,1708564247291,-764.44012135,0.00038,2]
[314812618,1708564247300,-764.44012135,0.00038,2]
[314812620,1708564247309,-764.44012135,0.00038,2]
[314812622,1708564247318,-764.44012135,0.00038,2]
[314812624,1708564247327,-764.44012135,0.00038,2]
[314812626,1708564247336,-764.44012135,0.00038,2]
[314812628,1708564247345,-764.44012135,0.00038,2]
[314812630,1708564247354,-764.44012135,0.00038,2]
[314812631,1708564247364,-764.44012135,0.00038,2]
[314812633,1708564247373,-764.44012135,0.00038,2]
[314812636,1708564247383,-764.44012135,0.00038,2]
[314812638,1708564247396,-764.44012135,0.00038,2]
[314812640,1708564247405,-764.44012135,0.00038,2]
[314812642,1708564247414,-764.44012135,0.00038,2]
[314812644,1708564247423,-764.44012135,0.00038,2]
[314812646,1708564247432,-764.44012135,0.00038,2]
[314812648,1708564247443,-764.44012135,0.00038,2]
[314812650,1708564247452,-764.44012135,0.00038,2]
[314812652,1708564247461,-764.44012135,0.00038,2]
[314812654,1708564247471,-764.44012135,0.00038,2]
[314812656,1708564247480,-764.44012135,0.00038,2]
[314812658,1708564247489,-764.44012135,0.00038,2]
[314812660,1708564247498,-764.44012135,0.00038,2]
[314812661,1708564247507,-764.44012135,0.00038,2]
[314812663,1708564247516,-764.44012135,0.00038,2]
[314812665,1708564247525,-764.44012135,0.00038,2]
[314812667,1708564247535,-764.44012135,0.00038,2]
[314812669,1708564247544,-764.44012135,0.00038,2]
[314812670,1708564247553,-764.44012135,0.00038,2]
[314812671,1708564247562,-764.44012135,0.00038,2]
[314812672,1708564247571,-764.44012135,0.00038,2]
[314812673,1708564247580,-764.44012135,0.00038,2]
[314812674,1708564247589,-764.44012135,0.00038,2]
[314812675,1708564247598,-764.44012135,0.00038,2]
[314812676,1708564247607,-764.44012135,0.00038,2]
[314812677,1708564247616,-764.44012135,0.00038,2]
[314812678,1708564247625,-764.44012135,0.00038,2]
[314812679,1708564247634,-764.44012135,0.00038,2]
[314812680,1708564247644,-764.44012135,0.00038,2]
[314812681,1708564247653,-764.44012135,0.00038,2]
[314812683,1708564247663,-764.44012135,0.00038,2]
[314812685,1708564247672,-764.44012135,0.00038,2]
[314812687,1708564247681,-764.44012135,0.00038,2]
[314812689,1708564247690,-764.44012135,0.00038,2]
[314812691,1708564247700,-764.44012135,0.00038,2]
[314812693,1708564247709,-764.44012135,0.00038,2]
[314812695,1708564247719,-150.0,0.00038008,2]
[314812698,1708564247729,-300.0,0.00038012,2]
[314812700,1708564247738,-150.0,0.00038013,2]
[314812702,1708564247747,-150.0,0.00038014,2]
[314812704,1708564247756,-150.0,0.0003802,2]
[314812705,1708564247766,-150.0,0.00038026,2]
[314812708,1708564247776,-150.0,0.00038039,2]